[Event "Titled Tuesday Blitz February 21 Late 2023"]
[White "Yedidia, Daniel"]
[Black "Mendez Machado, Andre"]
[WhiteFideId "30905907"]
[BlackFideId "6603793"]
[WhiteElo "2041"]
[BlackElo "1974"]
[Result "1-0"]
[Round "11"]
[TimeControl "180+2"]
[Date "2023.02.21"]
[WhiteClock "0:00:10"]
[BlackClock "0:00:01"]

1. d4 {[%clk 0:03:00]}  Nf6 {[%clk 0:02:59]} 2. c4 {[%clk 0:02:59]}  e6 {[%clk 0:03:00]} 3. Nc3 {[%clk 0:02:58]}  Bb4 {[%clk 0:03:00]} 4. e3 {[%clk 0:02:58]}  b6 {[%clk 0:02:57]} 5. Bd3 {[%clk 0:02:58]}  Bb7 {[%clk 0:02:57]} 6. f3 {[%clk 0:02:57]}  c5 {[%clk 0:02:53]} 7. Ne2 {[%clk 0:02:55]}  O-O {[%clk 0:02:52]} 8. O-O {[%clk 0:02:53]}  cxd4 {[%clk 0:02:52]} 9. exd4 {[%clk 0:02:53]}  d5 {[%clk 0:02:51]} 10. cxd5 {[%clk 0:02:52]}  Nxd5 {[%clk 0:02:47]} 11. Kh1 {[%clk 0:02:50]}  Nxc3 {[%clk 0:02:34]} 12. bxc3 {[%clk 0:02:50]}  Bd6 {[%clk 0:02:32]} 13. Qc2 {[%clk 0:02:49]}  Qh4 {[%clk 0:02:08]} 14. g3 {[%clk 0:02:37]}  Qh3 {[%clk 0:01:41]} 15. Nf4 {[%clk 0:02:29]}  Bxf4 {[%clk 0:01:40]} 16. Bxf4 {[%clk 0:02:29]}  Nc6 {[%clk 0:01:37]} 17. Qg2 {[%clk 0:02:02]}  Qxg2+ {[%clk 0:01:36]} 18. Kxg2 {[%clk 0:02:03]}  Rac8 {[%clk 0:01:33]} 19. Rac1 {[%clk 0:02:02]}  Na5 {[%clk 0:01:31]} 20. c4 {[%clk 0:01:58]}  Rfd8 {[%clk 0:01:27]} 21. Rfd1 {[%clk 0:01:58]}  Ba6 {[%clk 0:01:03]} 22. c5 {[%clk 0:01:46]}  Bxd3 {[%clk 0:00:57]} 23. Rxd3 {[%clk 0:01:46]}  bxc5 {[%clk 0:00:57]} 24. Ra3 {[%clk 0:01:46]}  Nc6 {[%clk 0:00:39]} 25. dxc5 {[%clk 0:01:37]}  e5 {[%clk 0:00:35]} 26. Be3 {[%clk 0:01:37]}  f6 {[%clk 0:00:26]} 27. Rb1 {[%clk 0:01:31]}  Rd7 {[%clk 0:00:26]} 28. Kf2 {[%clk 0:01:26]}  Rcd8 {[%clk 0:00:26]} 29. Ra6 {[%clk 0:01:25]}  Rc7 {[%clk 0:00:20]} 30. Rb2 {[%clk 0:01:25]}  Ne7 {[%clk 0:00:19]} 31. Rb5 {[%clk 0:01:17]}  Nd5 {[%clk 0:00:19]} 32. Bd2 {[%clk 0:01:18]}  Rdc8 {[%clk 0:00:18]} 33. Raa5 {[%clk 0:01:02]}  Kf7 {[%clk 0:00:16]} 34. a3 {[%clk 0:00:59]}  Ne7 {[%clk 0:00:15]} 35. Bb4 {[%clk 0:00:58]}  Nc6 {[%clk 0:00:15]} 36. Ra6 {[%clk 0:00:59]}  Nb8 {[%clk 0:00:13]} 37. Rd6 {[%clk 0:00:58]}  Nc6 {[%clk 0:00:13]} 38. Ba5 {[%clk 0:00:50]}  Re7 {[%clk 0:00:11]} 39. Bd2 {[%clk 0:00:47]}  Nd4 {[%clk 0:00:10]} 40. Ra5 {[%clk 0:00:34]}  Nb3 {[%clk 0:00:10]} 41. Rb5 {[%clk 0:00:31]}  Nxc5 {[%clk 0:00:09]} 42. Bb4 {[%clk 0:00:30]}  Rec7 {[%clk 0:00:07]} 43. Bxc5 {[%clk 0:00:27]}  Rxc5 {[%clk 0:00:08]} 44. Rxc5 {[%clk 0:00:25]}  Rxc5 {[%clk 0:00:09]} 45. Rd7+ {[%clk 0:00:26]}  Kg6 {[%clk 0:00:07]} 46. Rxa7 {[%clk 0:00:26]}  Rc2+ {[%clk 0:00:08]} 47. Kg1 {[%clk 0:00:27]}  Rc1+ {[%clk 0:00:08]} 48. Kg2 {[%clk 0:00:27]}  Rc2+ {[%clk 0:00:09]} 49. Kh3 {[%clk 0:00:28]}  Ra2 {[%clk 0:00:08]} 50. Ra6 {[%clk 0:00:26]}  Kg5 {[%clk 0:00:07]} 51. Ra4 {[%clk 0:00:25]}  h5 {[%clk 0:00:06]} 52. Ra8 {[%clk 0:00:20]}  Kh6 {[%clk 0:00:06]} 53. g4 {[%clk 0:00:17]}  hxg4+ {[%clk 0:00:05]} 54. fxg4 {[%clk 0:00:17]}  Kg5 {[%clk 0:00:06]} 55. Ra4 {[%clk 0:00:15]}  g6 {[%clk 0:00:05]} 56. Kg3 {[%clk 0:00:15]}  Kh6 {[%clk 0:00:04]} 57. h4 {[%clk 0:00:15]}  Ra1 {[%clk 0:00:04]} 58. Ra8 {[%clk 0:00:15]}  Rg1+ {[%clk 0:00:04]} 59. Kh3 {[%clk 0:00:15]}  Rh1+ {[%clk 0:00:04]} 60. Kg3 {[%clk 0:00:16]}  Rg1+ {[%clk 0:00:04]} 61. Kf3 {[%clk 0:00:17]}  Rf1+ {[%clk 0:00:05]} 62. Kg2 {[%clk 0:00:17]}  Ra1 {[%clk 0:00:04]} 63. Ra6 {[%clk 0:00:18]}  Ra2+ {[%clk 0:00:03]} 64. Kg3 {[%clk 0:00:18]}  Ra1 {[%clk 0:00:03]} 65. Rxf6 {[%clk 0:00:17]}  Rxa3+ {[%clk 0:00:03]} 66. Kf2 {[%clk 0:00:17]}  Ra2+ {[%clk 0:00:01]} 67. Kf3 {[%clk 0:00:17]}  Ra3+ {[%clk 0:00:02]} 68. Kg2 {[%clk 0:00:16]}  Ra2+ {[%clk 0:00:02]} 69. Kg3 {[%clk 0:00:17]}  Ra3+ {[%clk 0:00:02]} 70. Rf3 {[%clk 0:00:17]}  Ra4 {[%clk 0:00:03]} 71. Re3 {[%clk 0:00:16]}  e4 {[%clk 0:00:01]} 72. Kf4 {[%clk 0:00:17]}  Ra1 {[%clk 0:00:02]} 73. Rxe4 {[%clk 0:00:11]}  Rh1 {[%clk 0:00:02]} 74. Re8 {[%clk 0:00:10]}  Kg7 {[%clk 0:00:01]} 75. Kg3 {[%clk 0:00:10]} 1-0


[Site "https://www.chess.com"]

[Event "Titled Tuesday Blitz February 21 Late 2023"]
[White "Novikov, Evgenij"]
[Black "Stanisz, Patryk"]
[WhiteFideId "4125380"]
[BlackFideId "1123106"]
[WhiteElo "2276"]
[BlackElo "2161"]
[Result "1-0"]
[Round "11"]
[TimeControl "180+2"]
[Date "2023.02.21"]
[WhiteClock "0:00:14"]
[BlackClock "0:00:03"]

1. d4 {[%clk 0:03:00]}  d5 {[%clk 0:02:59]} 2. c4 {[%clk 0:02:57]}  c6 {[%clk 0:02:59]} 3. Nf3 {[%clk 0:02:57]}  Nf6 {[%clk 0:03:00]} 4. Nc3 {[%clk 0:02:57]}  e6 {[%clk 0:03:00]} 5. b3 {[%clk 0:02:54]}  Bd6 {[%clk 0:02:59]} 6. e3 {[%clk 0:02:48]}  b6 {[%clk 0:02:59]} 7. Bd3 {[%clk 0:02:47]}  Bb7 {[%clk 0:02:59]} 8. O-O {[%clk 0:02:47]}  Nbd7 {[%clk 0:02:59]} 9. e4 {[%clk 0:02:39]}  dxe4 {[%clk 0:03:00]} 10. Nxe4 {[%clk 0:02:40]}  Nxe4 {[%clk 0:03:00]} 11. Bxe4 {[%clk 0:02:41]}  Nf6 {[%clk 0:03:00]} 12. Bc2 {[%clk 0:02:41]}  h6 {[%clk 0:02:56]} 13. h3 {[%clk 0:02:34]}  Qe7 {[%clk 0:02:56]} 14. Re1 {[%clk 0:02:34]}  O-O-O {[%clk 0:02:48]} 15. Qe2 {[%clk 0:02:29]}  g5 {[%clk 0:02:43]} 16. Ne5 {[%clk 0:02:24]}  Rhg8 {[%clk 0:02:37]} 17. g3 {[%clk 0:02:03]}  c5 {[%clk 0:02:21]} 18. dxc5 {[%clk 0:01:58]}  Bxc5 {[%clk 0:02:19]} 19. Be3 {[%clk 0:01:56]}  Kb8 {[%clk 0:01:54]} 20. Rad1 {[%clk 0:01:55]}  Rg7 {[%clk 0:01:53]} 21. Bxc5 {[%clk 0:01:47]}  bxc5 {[%clk 0:01:52]} 22. Qe3 {[%clk 0:01:39]}  Rgg8 {[%clk 0:01:39]} 23. Bd3 {[%clk 0:01:25]}  Rd4 {[%clk 0:01:35]} 24. Bf1 {[%clk 0:01:16]}  Rgd8 {[%clk 0:01:34]} 25. Rxd4 {[%clk 0:01:11]}  cxd4 {[%clk 0:01:32]} 26. Qd3 {[%clk 0:01:09]}  Qc7 {[%clk 0:01:23]} 27. Bg2 {[%clk 0:01:06]}  Bxg2 {[%clk 0:01:15]} 28. Kxg2 {[%clk 0:01:07]}  h5 {[%clk 0:01:16]} 29. Qf3 {[%clk 0:01:04]}  Ne8 {[%clk 0:00:22]} 30. Nc6+ {[%clk 0:01:03]}  Kc8 {[%clk 0:00:23]} 31. Nxd8 {[%clk 0:01:03]}  Kxd8 {[%clk 0:00:24]} 32. Qxh5 {[%clk 0:00:54]}  Qc6+ {[%clk 0:00:20]} 33. Qf3 {[%clk 0:00:53]}  Qd7 {[%clk 0:00:19]} 34. Qd3 {[%clk 0:00:44]}  f6 {[%clk 0:00:18]} 35. f4 {[%clk 0:00:39]}  gxf4 {[%clk 0:00:18]} 36. gxf4 {[%clk 0:00:40]}  Qc6+ {[%clk 0:00:17]} 37. Kf2 {[%clk 0:00:38]}  Qd6 {[%clk 0:00:17]} 38. Re4 {[%clk 0:00:35]}  e5 {[%clk 0:00:18]} 39. fxe5 {[%clk 0:00:36]}  fxe5 {[%clk 0:00:18]} 40. Rh4 {[%clk 0:00:30]}  Nf6 {[%clk 0:00:18]} 41. Ke2 {[%clk 0:00:20]}  e4 {[%clk 0:00:16]} 42. Rxe4 {[%clk 0:00:20]}  Qh2+ {[%clk 0:00:11]} 43. Kd1 {[%clk 0:00:18]}  Nxe4 {[%clk 0:00:04]} 44. Qxe4 {[%clk 0:00:19]}  Qxh3 {[%clk 0:00:02]} 45. Qxd4+ {[%clk 0:00:19]}  Kc7 {[%clk 0:00:03]} 46. Qxa7+ {[%clk 0:00:18]}  Kc6 {[%clk 0:00:02]} 47. Qf2 {[%clk 0:00:16]}  Kc7 {[%clk 0:00:02]} 48. Kc2 {[%clk 0:00:15]}  Qh1 {[%clk 0:00:02]} 49. Kb2 {[%clk 0:00:14]}  Qa1+ {[%clk 0:00:03]} 50. Kxa1 {[%clk 0:00:14]} 1-0


[Site "https://www.chess.com"]

[Event "Titled Tuesday Blitz February 21 Late 2023"]
[White "Sabar, Ethmane Daouda"]
[Black "Karwowski, Kacper"]
[WhiteFideId "19600097"]
[BlackFideId "1126032"]
[WhiteElo "2040"]
[BlackElo "2164"]
[Result "1/2-1/2"]
[Round "11"]
[TimeControl "180+2"]
[Date "2023.02.21"]
[WhiteClock "0:01:16"]
[BlackClock "0:00:18"]

1. b3 {[%clk 0:03:00]}  d5 {[%clk 0:02:59]} 2. Bb2 {[%clk 0:03:01]}  Nf6 {[%clk 0:03:00]} 3. e3 {[%clk 0:03:02]}  c5 {[%clk 0:03:00]} 4. f4 {[%clk 0:03:00]}  Nc6 {[%clk 0:03:00]} 5. Bb5 {[%clk 0:03:00]}  Bd7 {[%clk 0:02:59]} 6. Bxc6 {[%clk 0:03:01]}  Bxc6 {[%clk 0:02:59]} 7. Nf3 {[%clk 0:03:02]}  e6 {[%clk 0:02:59]} 8. Ne5 {[%clk 0:03:03]}  Rc8 {[%clk 0:02:59]} 9. O-O {[%clk 0:03:03]}  Be7 {[%clk 0:02:58]} 10. d3 {[%clk 0:03:03]}  a6 {[%clk 0:02:59]} 11. Nd2 {[%clk 0:03:04]}  b5 {[%clk 0:02:58]} 12. Ndf3 {[%clk 0:03:04]}  O-O {[%clk 0:02:57]} 13. Nxc6 {[%clk 0:02:57]}  Rxc6 {[%clk 0:02:56]} 14. Ne5 {[%clk 0:02:57]}  Rc7 {[%clk 0:02:48]} 15. Rf3 {[%clk 0:02:58]}  c4 {[%clk 0:02:33]} 16. Qe1 {[%clk 0:02:39]}  g6 {[%clk 0:01:44]} 17. g4 {[%clk 0:02:33]}  Qc8 {[%clk 0:01:36]} 18. g5 {[%clk 0:02:31]}  Nh5 {[%clk 0:01:33]} 19. Rh3 {[%clk 0:02:29]}  cxd3 {[%clk 0:01:23]} 20. cxd3 {[%clk 0:02:29]}  Rc2 {[%clk 0:01:23]} 21. Rb1 {[%clk 0:02:21]}  Qc7 {[%clk 0:01:03]} 22. Ng4 {[%clk 0:02:12]}  Rc8 {[%clk 0:00:56]} 23. Be5 {[%clk 0:01:55]}  Qc6 {[%clk 0:00:25]} 24. Rd1 {[%clk 0:01:43]}  Rc1 {[%clk 0:00:24]} 25. Rf3 {[%clk 0:01:37]}  Rxd1 {[%clk 0:00:24]} 26. Qxd1 {[%clk 0:01:37]}  Qc1 {[%clk 0:00:25]} 27. Qxc1 {[%clk 0:01:35]}  Rxc1+ {[%clk 0:00:26]} 28. Rf1 {[%clk 0:01:34]}  Rc2 {[%clk 0:00:26]} 29. Rf2 {[%clk 0:01:34]}  Rc1+ {[%clk 0:00:20]} 30. Rf1 {[%clk 0:01:34]}  Rc2 {[%clk 0:00:21]} 31. Rf2 {[%clk 0:01:26]}  Rc1+ {[%clk 0:00:18]} 32. Rf1 {[%clk 0:01:16]} 1/2-1/2


[Site "https://www.chess.com"]

[Event "Titled Tuesday Blitz February 21 Late 2023"]
[White "Pissama Ntsaou, Martial"]
[Black "Rian, Kapriaga"]
[WhiteFideId "17400864"]
[BlackFideId "7103263"]
[WhiteElo "1430"]
[BlackElo "2089"]
[Result "0-1"]
[Round "11"]
[TimeControl "180+2"]
[Date "2023.02.21"]
[WhiteClock "0:00:11"]
[BlackClock "0:00:05"]

1. e4 {[%clk 0:03:00]}  c6 {[%clk 0:02:57]} 2. d4 {[%clk 0:03:00]}  d5 {[%clk 0:02:54]} 3. e5 {[%clk 0:03:00]}  Bf5 {[%clk 0:02:51]} 4. Nd2 {[%clk 0:03:00]}  e6 {[%clk 0:02:50]} 5. Nb3 {[%clk 0:03:00]}  Nd7 {[%clk 0:02:45]} 6. Nf3 {[%clk 0:02:58]}  h6 {[%clk 0:02:40]} 7. Be2 {[%clk 0:02:58]}  Ne7 {[%clk 0:02:38]} 8. O-O {[%clk 0:02:58]}  a6 {[%clk 0:02:37]} 9. a4 {[%clk 0:02:53]}  Rc8 {[%clk 0:02:36]} 10. Ne1 {[%clk 0:02:32]}  Bh7 {[%clk 0:02:31]} 11. a5 {[%clk 0:02:29]}  c5 {[%clk 0:02:27]} 12. c3 {[%clk 0:02:29]}  cxd4 {[%clk 0:02:25]} 13. cxd4 {[%clk 0:02:28]}  Nc6 {[%clk 0:02:24]} 14. Bd2 {[%clk 0:02:09]}  Be7 {[%clk 0:02:21]} 15. Nd3 {[%clk 0:02:05]}  O-O {[%clk 0:02:17]} 16. f4 {[%clk 0:02:01]}  Qc7 {[%clk 0:01:41]} 17. Rc1 {[%clk 0:01:49]}  Qb8 {[%clk 0:01:32]} 18. g4 {[%clk 0:01:46]}  Qa7 {[%clk 0:01:22]} 19. Be3 {[%clk 0:01:40]}  Nb4 {[%clk 0:01:12]} 20. f5 {[%clk 0:01:16]}  Nxd3 {[%clk 0:01:07]} 21. Bxd3 {[%clk 0:01:15]}  Bg5 {[%clk 0:01:03]} 22. Qd2 {[%clk 0:01:08]}  Bxe3+ {[%clk 0:01:01]} 23. Qxe3 {[%clk 0:01:09]}  exf5 {[%clk 0:00:56]} 24. gxf5 {[%clk 0:01:06]}  Rfe8 {[%clk 0:00:55]} 25. Qg3 {[%clk 0:00:53]}  Rxc1 {[%clk 0:00:48]} 26. Rxc1 {[%clk 0:00:51]}  Kh8 {[%clk 0:00:28]} 27. Rc7 {[%clk 0:00:45]}  Nxe5 {[%clk 0:00:23]} 28. Nc5 {[%clk 0:00:30]}  Nxd3 {[%clk 0:00:18]} 29. Qxd3 {[%clk 0:00:30]}  Qb8 {[%clk 0:00:13]} 30. Rxf7 {[%clk 0:00:15]}  Qf4 {[%clk 0:00:13]} 31. Kg2 {[%clk 0:00:13]}  Qg4+ {[%clk 0:00:08]} 32. Qg3 {[%clk 0:00:13]}  Re2+ {[%clk 0:00:07]} 33. Kg1 {[%clk 0:00:12]}  Qxd4+ {[%clk 0:00:06]} 34. Kf1 {[%clk 0:00:11]}  Qd1+ {[%clk 0:00:05]} 0-1


[Site "https://www.chess.com"]

[Event "Titled Tuesday Blitz February 21 Late 2023"]
[White "Kostiukov, Alexandr"]
[Black "Torres Dominguez, David"]
[WhiteFideId "14108100"]
[BlackFideId "2220857"]
[WhiteElo "2271"]
[BlackElo "1994"]
[Result "1-0"]
[Round "11"]
[TimeControl "180+2"]
[Date "2023.02.21"]
[WhiteClock "0:00:09"]
[BlackClock "0:00:09"]

1. g3 {[%clk 0:01:46]}  e5 {[%clk 0:02:52]} 2. c4 {[%clk 0:01:44]}  Nc6 {[%clk 0:02:52]} 3. Bg2 {[%clk 0:01:45]}  f5 {[%clk 0:02:52]} 4. Nc3 {[%clk 0:01:44]}  Nf6 {[%clk 0:02:52]} 5. Nf3 {[%clk 0:01:44]}  e4 {[%clk 0:02:52]} 6. Ng5 {[%clk 0:01:44]}  Be7 {[%clk 0:02:45]} 7. O-O {[%clk 0:01:43]}  O-O {[%clk 0:02:45]} 8. d3 {[%clk 0:01:41]}  d5 {[%clk 0:02:44]} 9. cxd5 {[%clk 0:01:36]}  Nxd5 {[%clk 0:02:41]} 10. Nxd5 {[%clk 0:01:34]}  Qxd5 {[%clk 0:02:40]} 11. dxe4 {[%clk 0:01:32]}  Qxd1 {[%clk 0:02:36]} 12. Rxd1 {[%clk 0:01:32]}  h6 {[%clk 0:02:33]} 13. Nh3 {[%clk 0:01:26]}  fxe4 {[%clk 0:02:32]} 14. Nf4 {[%clk 0:01:26]}  Bc5 {[%clk 0:02:26]} 15. Bxe4 {[%clk 0:01:20]}  Bg4 {[%clk 0:02:06]} 16. Bf3 {[%clk 0:01:01]}  Bxf3 {[%clk 0:02:03]} 17. exf3 {[%clk 0:01:02]}  Nd4 {[%clk 0:01:59]} 18. Kg2 {[%clk 0:00:58]}  g5 {[%clk 0:01:56]} 19. Rxd4 {[%clk 0:00:43]}  Bxd4 {[%clk 0:01:52]} 20. Ne6 {[%clk 0:00:44]}  Rad8 {[%clk 0:01:31]} 21. Nxf8 {[%clk 0:00:39]}  Kxf8 {[%clk 0:01:29]} 22. h4 {[%clk 0:00:28]}  Bf6 {[%clk 0:01:03]} 23. hxg5 {[%clk 0:00:28]}  hxg5 {[%clk 0:01:04]} 24. Be3 {[%clk 0:00:26]}  Bxb2 {[%clk 0:01:02]} 25. Rb1 {[%clk 0:00:25]}  Be5 {[%clk 0:00:55]} 26. Rxb7 {[%clk 0:00:24]}  a5 {[%clk 0:00:54]} 27. Bxg5 {[%clk 0:00:23]}  Rd5 {[%clk 0:00:50]} 28. Be3 {[%clk 0:00:19]}  Rd3 {[%clk 0:00:44]} 29. f4 {[%clk 0:00:19]}  Bd6 {[%clk 0:00:44]} 30. Kf3 {[%clk 0:00:17]}  Ra3 {[%clk 0:00:43]} 31. Rb2 {[%clk 0:00:16]}  a4 {[%clk 0:00:39]} 32. Rc2 {[%clk 0:00:16]}  Kf7 {[%clk 0:00:36]} 33. Ke4 {[%clk 0:00:16]}  Ke7 {[%clk 0:00:29]} 34. Bc1 {[%clk 0:00:16]}  Kd7 {[%clk 0:00:13]} 35. Bxa3 {[%clk 0:00:14]}  Bxa3 {[%clk 0:00:14]} 36. g4 {[%clk 0:00:14]}  Be7 {[%clk 0:00:12]} 37. g5 {[%clk 0:00:14]}  a3 {[%clk 0:00:12]} 38. g6 {[%clk 0:00:13]}  Ke6 {[%clk 0:00:11]} 39. f5+ {[%clk 0:00:12]}  Kf6 {[%clk 0:00:11]} 40. f4 {[%clk 0:00:13]}  Bd6 {[%clk 0:00:11]} 41. Rh2 {[%clk 0:00:10]}  Kg7 {[%clk 0:00:09]} 42. Rh7+ {[%clk 0:00:09]}  Kf6 {[%clk 0:00:09]} 43. Rf7# {[%clk 0:00:09]} 1-0


[Site "https://www.chess.com"]

[Event "Titled Tuesday Blitz February 21 Late 2023"]
[White "Dias, Joao Batista"]
[Black "Fajdetic, Hrvoje"]
[WhiteFideId "2108240"]
[BlackFideId "14501945"]
[WhiteElo "1796"]
[BlackElo "2151"]
[Result "1-0"]
[Round "11"]
[TimeControl "180+2"]
[Date "2023.02.21"]
[WhiteClock "0:01:12"]
[BlackClock "0:00:01"]

1. e4 {[%clk 0:03:00]}  c5 {[%clk 0:02:59]} 2. Nf3 {[%clk 0:02:59]}  a6 {[%clk 0:02:58]} 3. d4 {[%clk 0:02:58]}  cxd4 {[%clk 0:02:57]} 4. Nxd4 {[%clk 0:02:58]}  Nf6 {[%clk 0:02:57]} 5. Nc3 {[%clk 0:02:57]}  e5 {[%clk 0:02:52]} 6. Nb3 {[%clk 0:02:56]}  Bb4 {[%clk 0:02:50]} 7. f3 {[%clk 0:02:54]}  Bxc3+ {[%clk 0:02:38]} 8. bxc3 {[%clk 0:02:54]}  d5 {[%clk 0:02:39]} 9. exd5 {[%clk 0:02:46]}  Qxd5 {[%clk 0:02:38]} 10. Qxd5 {[%clk 0:02:45]}  Nxd5 {[%clk 0:02:39]} 11. c4 {[%clk 0:02:43]}  Nb4 {[%clk 0:02:35]} 12. Kd2 {[%clk 0:02:40]}  O-O {[%clk 0:02:31]} 13. a3 {[%clk 0:02:40]}  Rd8+ {[%clk 0:02:28]} 14. Kc3 {[%clk 0:02:38]}  N4c6 {[%clk 0:02:25]} 15. Bd3 {[%clk 0:02:38]}  Nd7 {[%clk 0:02:21]} 16. Be3 {[%clk 0:02:36]}  Nf8 {[%clk 0:02:13]} 17. Rad1 {[%clk 0:02:34]}  Be6 {[%clk 0:01:56]} 18. Bb6 {[%clk 0:02:27]}  Rdc8 {[%clk 0:01:49]} 19. Nc5 {[%clk 0:02:21]}  Ne7 {[%clk 0:01:35]} 20. Nxe6 {[%clk 0:02:17]}  Nxe6 {[%clk 0:01:32]} 21. Be4 {[%clk 0:02:16]}  Nc6 {[%clk 0:01:07]} 22. Rd7 {[%clk 0:02:09]}  Rab8 {[%clk 0:00:58]} 23. g3 {[%clk 0:02:03]}  Ned4 {[%clk 0:00:41]} 24. Bd5 {[%clk 0:01:52]}  Ne6 {[%clk 0:00:31]} 25. Re1 {[%clk 0:01:51]}  Re8 {[%clk 0:00:16]} 26. a4 {[%clk 0:01:50]}  h5 {[%clk 0:00:14]} 27. a5 {[%clk 0:01:49]}  h4 {[%clk 0:00:14]} 28. Re2 {[%clk 0:01:42]}  Ncd4 {[%clk 0:00:12]} 29. Rxe5 {[%clk 0:01:39]}  Nc6 {[%clk 0:00:08]} 30. Rf5 {[%clk 0:01:37]}  Rf8 {[%clk 0:00:07]} 31. gxh4 {[%clk 0:01:29]}  Rbe8 {[%clk 0:00:05]} 32. h5 {[%clk 0:01:27]}  Rb8 {[%clk 0:00:04]} 33. h4 {[%clk 0:01:25]}  Ncd8 {[%clk 0:00:04]} 34. h6 {[%clk 0:01:19]}  gxh6 {[%clk 0:00:03]} 35. Rf6 {[%clk 0:01:14]}  Kg7 {[%clk 0:00:03]} 36. Rxe6 {[%clk 0:01:14]}  Nxe6 {[%clk 0:00:02]} 37. Bxe6 {[%clk 0:01:14]}  Rbc8 {[%clk 0:00:01]} 38. Bd5 {[%clk 0:01:12]} 1-0


[Site "https://www.chess.com"]

[Event "Titled Tuesday Blitz February 21 Late 2023"]
[White "Eckert, Doug"]
[Black "Desideri, Ricardo Maruchi"]
[WhiteFideId "2001993"]
[BlackFideId "2110440"]
[WhiteElo "2075"]
[BlackElo "1959"]
[Result "1-0"]
[Round "11"]
[TimeControl "180+2"]
[Date "2023.02.21"]
[WhiteClock "0:00:53"]
[BlackClock "0:00:01"]

1. d4 {[%clk 0:02:59]}  Nf6 {[%clk 0:02:58]} 2. c4 {[%clk 0:02:59]}  c5 {[%clk 0:02:58]} 3. d5 {[%clk 0:02:58]}  e6 {[%clk 0:02:58]} 4. Nc3 {[%clk 0:02:58]}  exd5 {[%clk 0:02:58]} 5. cxd5 {[%clk 0:02:59]}  d6 {[%clk 0:02:58]} 6. Nf3 {[%clk 0:02:57]}  g6 {[%clk 0:02:58]} 7. h3 {[%clk 0:02:58]}  Bg7 {[%clk 0:02:57]} 8. e4 {[%clk 0:02:58]}  O-O {[%clk 0:02:57]} 9. Be3 {[%clk 0:02:59]}  a6 {[%clk 0:02:53]} 10. a4 {[%clk 0:02:59]}  Re8 {[%clk 0:02:53]} 11. Nd2 {[%clk 0:02:59]}  Nbd7 {[%clk 0:02:51]} 12. Be2 {[%clk 0:02:53]}  Qe7 {[%clk 0:02:44]} 13. O-O {[%clk 0:02:51]}  Qf8 {[%clk 0:02:42]} 14. Qc2 {[%clk 0:02:46]}  Rb8 {[%clk 0:02:41]} 15. Rae1 {[%clk 0:02:37]}  b6 {[%clk 0:02:11]} 16. Bf4 {[%clk 0:02:34]}  Ne5 {[%clk 0:02:09]} 17. Bh2 {[%clk 0:02:27]}  c4 {[%clk 0:02:03]} 18. f4 {[%clk 0:02:25]}  Nd3 {[%clk 0:02:02]} 19. Bxd3 {[%clk 0:02:22]}  cxd3 {[%clk 0:02:02]} 20. Qxd3 {[%clk 0:02:22]}  b5 {[%clk 0:01:59]} 21. axb5 {[%clk 0:02:12]}  axb5 {[%clk 0:01:58]} 22. e5 {[%clk 0:02:07]}  Nd7 {[%clk 0:01:50]} 23. e6 {[%clk 0:01:59]}  fxe6 {[%clk 0:01:47]} 24. dxe6 {[%clk 0:01:58]}  Nc5 {[%clk 0:01:47]} 25. Qd5 {[%clk 0:01:48]}  Bxe6 {[%clk 0:01:41]} 26. Rxe6 {[%clk 0:01:40]}  Rxe6 {[%clk 0:01:36]} 27. b4 {[%clk 0:01:34]}  Re8 {[%clk 0:01:23]} 28. bxc5 {[%clk 0:01:31]}  Bxc3 {[%clk 0:01:21]} 29. Ne4 {[%clk 0:01:31]}  Bd4+ {[%clk 0:01:09]} 30. Kh1 {[%clk 0:01:26]}  Bxc5 {[%clk 0:00:50]} 31. Ng5 {[%clk 0:01:25]}  Qf5 {[%clk 0:00:45]} 32. Qb3 {[%clk 0:01:23]}  Kg7 {[%clk 0:00:17]} 33. Nxe6+ {[%clk 0:01:21]}  Qxe6 {[%clk 0:00:17]} 34. Qxb5 {[%clk 0:01:17]}  Qe2 {[%clk 0:00:16]} 35. Qxe2 {[%clk 0:01:11]}  Rxe2 {[%clk 0:00:16]} 36. Bg3 {[%clk 0:01:12]}  d5 {[%clk 0:00:15]} 37. Rc1 {[%clk 0:01:03]}  Be7 {[%clk 0:00:15]} 38. Rd1 {[%clk 0:01:01]}  Re3 {[%clk 0:00:07]} 39. Kh2 {[%clk 0:00:59]}  Re4 {[%clk 0:00:03]} 40. Rxd5 {[%clk 0:00:57]}  h5 {[%clk 0:00:01]} 41. f5 {[%clk 0:00:53]} 1-0


[Site "https://www.chess.com"]

[Event "Titled Tuesday Blitz February 21 Late 2023"]
[White "Gamboa, Juan Pablo"]
[Black "Better_Chess_Faster"]
[WhiteFideId "105180"]
[WhiteElo "2224"]
[BlackElo "1982"]
[Result "0-1"]
[Round "11"]
[TimeControl "180+2"]
[Date "2023.02.21"]
[WhiteClock "0:00:18"]
[BlackClock "0:01:15"]

1. c4 {[%clk 0:03:00]}  e5 {[%clk 0:02:59]} 2. Nc3 {[%clk 0:03:00]}  Bb4 {[%clk 0:02:58]} 3. Nd5 {[%clk 0:03:00]}  Be7 {[%clk 0:02:57]} 4. Nf3 {[%clk 0:02:59]}  c6 {[%clk 0:02:56]} 5. Nxe7 {[%clk 0:02:59]}  Qxe7 {[%clk 0:02:56]} 6. d3 {[%clk 0:02:59]}  Nf6 {[%clk 0:02:55]} 7. e3 {[%clk 0:03:00]}  d5 {[%clk 0:02:56]} 8. cxd5 {[%clk 0:02:57]}  cxd5 {[%clk 0:02:56]} 9. Be2 {[%clk 0:02:58]}  Nc6 {[%clk 0:02:56]} 10. O-O {[%clk 0:02:57]}  O-O {[%clk 0:02:56]} 11. a3 {[%clk 0:02:52]}  a5 {[%clk 0:02:54]} 12. b3 {[%clk 0:02:52]}  e4 {[%clk 0:02:53]} 13. dxe4 {[%clk 0:02:40]}  dxe4 {[%clk 0:02:53]} 14. Nd4 {[%clk 0:02:41]}  Ne5 {[%clk 0:02:45]} 15. Bb2 {[%clk 0:02:38]}  Bg4 {[%clk 0:02:40]} 16. Bxg4 {[%clk 0:02:27]}  Nexg4 {[%clk 0:02:39]} 17. Nf5 {[%clk 0:02:01]}  Qc7 {[%clk 0:02:28]} 18. Ng3 {[%clk 0:01:56]}  Rad8 {[%clk 0:02:22]} 19. Qe2 {[%clk 0:01:47]}  Ne5 {[%clk 0:02:16]} 20. Rac1 {[%clk 0:01:39]}  Qe7 {[%clk 0:02:15]} 21. Nf5 {[%clk 0:01:23]}  Qe6 {[%clk 0:02:15]} 22. Nd4 {[%clk 0:01:22]}  Qb6 {[%clk 0:02:13]} 23. Rc3 {[%clk 0:00:49]}  Nd3 {[%clk 0:02:09]} 24. Ba1 {[%clk 0:00:46]}  Rfe8 {[%clk 0:02:06]} 25. Rd1 {[%clk 0:00:45]}  h6 {[%clk 0:02:02]} 26. h3 {[%clk 0:00:43]}  Nc5 {[%clk 0:01:59]} 27. Nf5 {[%clk 0:00:34]}  Rxd1+ {[%clk 0:01:55]} 28. Qxd1 {[%clk 0:00:35]}  Rd8 {[%clk 0:01:55]} 29. Qc2 {[%clk 0:00:32]}  Nd3 {[%clk 0:01:46]} 30. Rc8 {[%clk 0:00:31]}  Rxc8 {[%clk 0:01:44]} 31. Qxc8+ {[%clk 0:00:30]}  Kh7 {[%clk 0:01:44]} 32. Ne7 {[%clk 0:00:26]}  h5 {[%clk 0:01:31]} 33. Bxf6 {[%clk 0:00:26]}  Qxf6 {[%clk 0:01:22]} 34. Qg8+ {[%clk 0:00:23]}  Kh6 {[%clk 0:01:22]} 35. Qh8+ {[%clk 0:00:20]}  Kg5 {[%clk 0:01:22]} 36. f4+ {[%clk 0:00:19]}  exf3 {[%clk 0:01:20]} 37. h4+ {[%clk 0:00:18]}  Kxh4 {[%clk 0:01:19]} 38. g3+ {[%clk 0:00:18]}  Kxg3 {[%clk 0:01:17]} 39. Qxh5 {[%clk 0:00:18]}  Qa1# {[%clk 0:01:15]} 0-1


[Site "https://www.chess.com"]